bitfinex/quotes_BTCUSD_20250512
["timestamp","ask_amount","ask_price","bid_price","bid_amount"]
[1747063924500,0.03016452,102860.0,102850.0,2.40855665]
[1747063924702,0.03016452,102860.0,102850.0,2.71631665]
[1747063924902,0.001,102860.0,102850.0,2.71631665]
[1747063925390,0.0107211,102860.0,102850.0,2.71631665]
[1747063925601,0.02044248,102860.0,102850.0,2.03371601]
[1747063925811,0.001,102860.0,102850.0,2.03371601]
[1747063926023,0.001,102860.0,102850.0,2.26509686]
[1747063928240,0.0107211,102860.0,102850.0,2.26509686]
[1747063928454,0.001,102860.0,102850.0,2.26509686]
[1747063928667,0.0107211,102860.0,102850.0,2.26509686]
[1747063928878,0.02044229,102860.0,102850.0,2.26509686]
[1747063929335,0.0107211,102860.0,102850.0,2.26509686]
[1747063929548,0.21488227,102860.0,102850.0,0.87090466]
[1747063929980,0.21488227,102860.0,102850.0,0.13090466]
[1747063930198,0.26778227,102860.0,102850.0,0.346]
[1747063930433,0.26778227,102860.0,102850.0,0.006]
[1747063930872,0.26778227,102860.0,102850.0,0.346]
[1747063931530,0.26778227,102860.0,102850.0,0.006]
[1747063936260,0.24178227,102860.0,102850.0,0.006]
[1747063936857,0.21488227,102860.0,102850.0,0.006]
[1747063937908,0.24018227,102860.0,102850.0,0.006]
[1747063938328,0.26458227,102860.0,102850.0,0.006]
[1747063938961,0.71458227,102860.0,102850.0,0.006]
[1747063939178,0.71458227,102860.0,102850.0,2.44910901]
[1747063939179,0.451,102860.0,102850.0,2.44910901]
[1747063939405,0.451,102860.0,102850.0,3.35053683]
[1747063940046,0.451,102860.0,102850.0,3.27246901]
[1747063940275,0.68432513,102860.0,102850.0,1.6661981]
[1747063940487,0.68432513,102860.0,102850.0,1.57793797]
[1747063940691,0.65516099,102860.0,102850.0,1.0989226]
[1747063940907,0.65516099,102860.0,102850.0,1.5086453]
[1747063941106,0.65516099,102860.0,102850.0,1.0989226]
[1747063941308,0.65516099,102860.0,102850.0,1.11836829]
[1747063941548,0.65516099,102860.0,102850.0,1.12809099]
[1747063941765,0.65516099,102860.0,102850.0,1.11836829]
[1747063942013,0.65516099,102860.0,102850.0,1.1280909]
[1747063942219,0.65516099,102860.0,102850.0,1.11836829]
[1747063942637,0.65516099,102860.0,102850.0,1.12809099]
[1747063942857,0.65516099,102860.0,102850.0,1.09904063]
[1747063943098,0.451,102860.0,102850.0,3.31047524]
[1747063943519,0.451,102860.0,102850.0,3.17903924]
[1747063943729,0.47044286,102860.0,102850.0,2.44270424]
[1747063943940,0.47044286,102860.0,102850.0,2.09160424]
[1747063944202,0.46072129,102860.0,102850.0,1.15104063]
[1747063944430,0.71798227,102860.0,102850.0,0.1018543]
[1747063944637,0.71798227,102860.0,102850.0,0.006]
[1747063945052,0.71798227,102860.0,102850.0,0.346]
[1747063945913,0.6551608,102860.0,102850.0,0.346]
[1747063946120,0.46072147,102860.0,102850.0,1.13477235]
[1747063946348,0.47044266,102860.0,102850.0,1.13477235]
[1747063946550,0.48016432,102860.0,102850.0,1.13477235]
[1747063946960,0.69404716,102860.0,102850.0,1.13477254]
[1747063947099,0.68432521,102860.0,102850.0,1.13477254]
[1747063947291,0.68432521,102860.0,102850.0,1.14449487]
[1747063947726,0.68432521,102860.0,102850.0,1.61916021]
[1747063947727,0.451,102860.0,102850.0,1.61916021]
[1747063947921,0.451,102860.0,102850.0,1.64396021]
[1747063948167,0.451,102860.0,102850.0,2.06826021]
[1747063948582,0.451,102860.0,102850.0,2.28446021]
[1747063948800,0.451,102860.0,102850.0,2.29900106]
[1747063950730,0.451,102860.0,102850.0,2.04053506]
[1747063950965,0.451,102860.0,102850.0,3.44755606]
[1747063951428,0.451,102860.0,102850.0,3.21681521]
[1747063951663,0.66488246,102860.0,102850.0,0.1018543]
[1747063951908,0.71438246,102860.0,102850.0,0.1018543]
[1747063952143,0.71438246,102860.0,102830.0,1.07348347]
[1747063952144,0.02916981,102840.0,102830.0,1.07348347]
[1747063952375,0.01944617,102840.0,102830.0,1.95092225]
[1747063952607,0.02916954,102840.0,102830.0,2.29092225]
[1747063953089,0.21392387,102840.0,102830.0,0.12490466]
[1747063953372,0.21392387,102840.0,102830.0,0.02905036]
[1747063953615,0.21492387,102840.0,102830.0,0.37505036]
[1747063953849,0.01072308,102840.0,102830.0,1.1638681]
[1747063954087,0.0301701,102840.0,102830.0,1.4519611]
[1747063954289,0.03989384,102840.0,102830.0,1.4519611]
[1747063954495,0.23537145,102840.0,102830.0,1.47360598]
[1747063954927,0.23537145,102840.0,102830.0,1.48333029]
[1747063955154,0.002,102840.0,102830.0,1.49305441]
[1747063955365,0.03116972,102840.0,102830.0,1.73535441]
[1747063955568,0.002,102840.0,102830.0,1.73535441]
[1747063955782,0.02144645,102840.0,102830.0,1.73535441]
[1747063955991,0.45,102860.0,102830.0,1.94397314]
[1747063956223,0.24560179,102880.0,102830.0,1.94397314]
[1747063956224,0.20412175,102880.0,102870.0,0.2235823]
[1747063956432,0.22356149,102880.0,102870.0,1.01343173]
[1747063956651,0.21384181,102880.0,102870.0,0.34]
[1747063956867,0.26244181,102880.0,102870.0,0.34]
[1747063957293,0.20414105,102870.0,102860.0,0.7991324]
[1747063957514,0.22358221,102870.0,102860.0,0.36905036]
[1747063957729,0.21386177,102870.0,102860.0,0.36905036]
[1747063958589,0.00972044,102870.0,102860.0,1.14807828]
[1747063958795,0.00972044,102870.0,102860.0,1.67551728]
[1747063958796,0.02916178,102870.0,102860.0,1.67551728]
[1747063959153,0.04860284,102870.0,102860.0,1.67551728]
[1747063959372,0.23330283,102870.0,102860.0,0.6603437]
[1747063959583,0.26636186,102870.0,102860.0,0.37005036]
[1747063959793,0.26636186,102870.0,102860.0,0.03105036]
[1747063960853,0.21386186,102870.0,102860.0,0.03105036]
[1747063961293,0.23846186,102870.0,102860.0,0.03105036]
[1747063961520,0.26286186,102870.0,102860.0,0.002]
[1747063961726,0.35871616,102870.0,102860.0,0.002]
[1747063962364,0.35871616,102870.0,102860.0,0.001]
[1747063962790,0.21390306,102850.0,102840.0,0.58525036]
[1747063963459,0.21390306,102850.0,102840.0,1.3545984]
[1747063963674,0.01944286,102860.0,102850.0,0.21390306]
[1747063963878,0.01944286,102860.0,102850.0,2.01072142]
[1747063963879,0.23332551,102860.0,102850.0,2.01072142]
[1747063964086,0.23332617,102860.0,102850.0,1.61130384]
[1747063964298,0.2236046,102860.0,102850.0,1.60158142]
[1747063964505,0.2236046,102860.0,102850.0,0.97968142]
[1747063964725,0.21388284,102860.0,102850.0,0.90484881]
[1747063964932,0.21388284,102860.0,102850.0,0.91457132]
[1747063965259,0.21388284,102860.0,102850.0,0.91557132]
[1747063966062,0.20416089,102860.0,102850.0,0.91557132]
[1747063966273,0.01944276,102860.0,102850.0,0.93501559]
[1747063966474,0.20414114,102870.0,102860.0,0.54416089]
[1747063966475,0.21386186,102870.0,102860.0,0.54416089]
[1747063966734,0.21386186,102870.0,102860.0,1.12863542]
[1747063966936,0.21386186,102870.0,102860.0,1.13835708]
[1747063967182,0.21386186,102870.0,102860.0,1.12863542]
[1747063967641,0.21384162,102880.0,102870.0,0.56358201]
[1747063967848,0.21387232,102890.0,102880.0,0.21384088]
[1747063968061,0.21387232,102890.0,102880.0,0.68302147]
[1747063968278,0.21387232,102890.0,102880.0,0.48862023]
[1747063968698,0.21387232,102890.0,102880.0,1.03274153]
[1747063968933,0.01943813,102890.0,102880.0,1.13931579]
[1747063969137,0.21382048,102890.0,102880.0,0.92547453]
[1747063969348,0.20410146,102890.0,102880.0,0.92547453]
[1747063969798,0.20410146,102890.0,102880.0,0.46590466]
[1747063970014,0.22880146,102890.0,102880.0,0.03005036]
[1747063970217,0.25460146,102890.0,102880.0,0.03024184]
[1747063972167,0.25460146,102890.0,102880.0,0.001]
[1747063972430,1.02554563,102890.0,102880.0,0.001]
[1747063972636,1.25624648,102890.0,102880.0,0.001]
[1747063973039,0.78213576,102890.0,102880.0,0.001]
[1747063973898,0.56661576,102890.0,102880.0,0.001]
[1747063974300,0.35145576,102890.0,102880.0,0.001]
[1747063974440,0.35145576,102890.0,102860.0,0.82880596]
[1747063974441,0.21386148,102870.0,102860.0,0.82880596]
[1747063974685,0.21386148,102870.0,102860.0,0.37895804]
[1747063974880,0.21386148,102870.0,102860.0,0.58311893]
[1747063974881,0.20414095,102870.0,102860.0,0.58311893]
[1747063975097,0.20414095,102870.0,102860.0,0.57339708]
[1747063975300,0.20414095,102870.0,102860.0,0.58311893]
[1747063975508,0.20414095,102870.0,102860.0,0.58511893]
[1747063975713,0.19442014,102870.0,102860.0,0.58511893]
[1747063975929,0.19442014,102870.0,102860.0,0.59684069]
[1747063976180,0.03888231,102870.0,102860.0,1.87017052]
[1747063976402,0.0291614,102870.0,102860.0,1.68989462]
[1747063976627,0.21386195,102870.0,102860.0,0.98727739]
[1747063976847,0.21386195,102870.0,102860.0,0.47865536]
[1747063977049,0.20414114,102870.0,102860.0,0.47865536]
[1747063977242,0.20414114,102870.0,102860.0,0.87865536]
[1747063977685,0.20414114,102870.0,102860.0,0.6730944]
[1747063977893,0.19438235,102890.0,102870.0,0.53442014]
[1747063978135,0.20410137,102890.0,102880.0,0.45956987]
[1747063978288,0.21384079,102880.0,102870.0,0.86511597]
[1747063978492,0.2041213,102880.0,102870.0,0.6512543]
[1747063978711,0.2041213,102880.0,102870.0,0.662052]
[1747063978925,0.2041213,102880.0,102860.0,1.01352947]
[1747063978926,0.20414095,102870.0,102860.0,1.01352947]
[1747063979128,0.20414095,102870.0,102860.0,1.10938377]
[1747063979608,0.20464095,102870.0,102860.0,1.10938377]
[1747063979849,0.20464095,102870.0,102860.0,1.31354476]
[1747063980147,0.20464095,102870.0,102860.0,0.91354476]
[1747063980378,0.20464095,102870.0,102860.0,0.93298799]
[1747063980661,0.0005,102870.0,102860.0,2.24798853]
[1747063980954,0.02966121,102870.0,102860.0,2.30238853]
[1747063981231,0.02966121,102870.0,102860.0,2.30438853]
[1747063981486,0.03938202,102870.0,102860.0,2.30638853]
[1747063981763,0.01994049,102870.0,102860.0,2.30638853]
[1747063982057,0.02966111,102870.0,102860.0,2.30638853]
[1747063982660,0.02966102,102870.0,102860.0,2.30638853]
[1747063982871,0.03938183,102870.0,102860.0,2.30638853]
[1747063983086,0.02966102,102870.0,102860.0,2.70638853]
[1747063983321,0.24352269,102870.0,102860.0,2.13141386]
[1747063983555,0.22408258,102870.0,102860.0,1.31754476]
[1747063983811,0.22408258,102870.0,102860.0,0.89798377]
[1747063984039,0.26696186,102870.0,102860.0,0.37307911]
[1747063984249,0.26696186,102870.0,102860.0,0.03307911]
[1747063984449,0.26696186,102870.0,102860.0,0.004]
[1747063984677,0.36281616,102870.0,102860.0,0.004]
[1747063985154,0.36281616,102870.0,102860.0,0.002]
[1747063985499,0.21436186,102870.0,102860.0,0.002]
[1747063985712,0.21388246,102860.0,102850.0,0.99402781]
[1747063985929,0.00972138,102860.0,102850.0,1.10932732]
[1747063986175,0.23332513,102860.0,102850.0,1.92536455]
[1747063986824,0.0097211,102860.0,102850.0,1.9798439]
[1747063987050,0.01022034,102870.0,102860.0,0.23332532]
[1747063987284,0.01022034,102870.0,102860.0,1.69027049]
[1747063987285,0.02966177,102870.0,102860.0,1.69027049]
[1747063987514,0.01022034,102870.0,102860.0,1.61735949]
[1747063987767,0.01994087,102870.0,102860.0,1.60360049]
[1747063987984,0.02966168,102870.0,102860.0,1.60360049]
[1747063988215,0.0005,102870.0,102860.0,1.94360049]
[1747063988702,0.01022034,102870.0,102860.0,1.60545149]
[1747063988928,0.02966168,102870.0,102860.0,1.46475282]
[1747063989172,0.23380273,102870.0,102860.0,2.05224582]
[1747063989442,0.23380273,102870.0,102860.0,1.2169519]
[1747063989685,0.23380273,102870.0,102860.0,1.09001852]
[1747063989943,0.23380273,102870.0,102860.0,1.27974952]
[1747063989944,0.22408182,102870.0,102860.0,1.27974952]
[1747063990168,0.01994087,102870.0,102860.0,1.29919219]
[1747063990404,0.02966168,102870.0,102860.0,1.78556206]
[1747063990623,0.23380282,102870.0,102860.0,1.77584077]
[1747063990883,0.23380282,102870.0,102860.0,1.71580539]
[1747063991101,0.01994078,102870.0,102860.0,1.69872668]
[1747063991327,0.02966121,102870.0,102860.0,1.75457704]
[1747063991517,0.01994059,102870.0,102860.0,2.15457704]
[1747063991811,0.03938175,102870.0,102860.0,2.15457704]
[1747063992040,0.03938175,102870.0,102860.0,2.18157704]
[1747063992041,0.01022015,102870.0,102860.0,2.18157704]
[1747063992826,0.01994059,102870.0,102860.0,2.18157704]
[1747063993060,0.02966093,102870.0,102860.0,2.18157704]
[1747063993308,0.02966084,102870.0,102860.0,2.18157704]
[1747063994239,0.02966084,102870.0,102860.0,2.09524304]
[1747063994718,0.0199404,102870.0,102860.0,2.09524304]
[1747063994929,0.02966084,102870.0,102860.0,2.09524304]
[1747063995323,0.03938137,102870.0,102860.0,1.97548004]
[1747063995570,0.02966084,102870.0,102860.0,1.97548004]
[1747063996157,0.02966084,102870.0,102860.0,1.92168004]
[1747063996365,0.03938137,102870.0,102860.0,1.92168004]
[1747063996586,0.23380217,102870.0,102860.0,1.91195875]
[1747063996802,0.2041608,102860.0,102850.0,0.03117935]
[1747063997219,0.2563608,102860.0,102850.0,0.03117935]
[1747063997426,0.2563608,102860.0,102850.0,0.37117935]
[1747063997659,0.2041608,102860.0,102850.0,0.37117935]
[1747063998273,0.00972166,102860.0,102850.0,1.12206146]
[1747063998492,0.19492014,102870.0,102850.0,3.361298]
[1747063998702,0.21436148,102870.0,102860.0,0.77125082]
[1747063998915,0.22408173,102870.0,102860.0,0.76930663]
[1747063999154,0.21436148,102870.0,102860.0,0.75958506]
[1747063999351,0.19492014,102870.0,102860.0,0.29029334]
[1747063999559,0.19492014,102870.0,102860.0,0.0958543]
[1747064000619,0.01944314,102860.0,102850.0,1.06409703]
[1747064000816,0.01994314,102860.0,102850.0,0.70038146]
[1747064001018,0.22410403,102860.0,102850.0,0.66921439]
[1747064001238,0.21438265,102860.0,102850.0,0.46503365]
[1747064001475,0.21438265,102860.0,102850.0,0.67893718]
[1747064001898,0.21438265,102860.0,102850.0,0.68865979]
[1747064002128,0.21438265,102860.0,102850.0,0.46603365]
[1747064002366,0.26518265,102860.0,102850.0,0.03217935]
[1747064002983,0.23968265,102860.0,102850.0,0.03217935]
[1747064003186,0.0005,102860.0,102850.0,0.811229]
[1747064003398,0.01994276,102860.0,102850.0,2.403618]
[1747064003596,0.02966442,102860.0,102850.0,2.618978]
[1747064004033,0.01994276,102860.0,102850.0,2.618978]
[1747064004264,0.01994276,102860.0,102850.0,2.645378]
[1747064004497,0.03938599,102860.0,102850.0,2.65076469]
[1747064004735,0.0005,102860.0,102850.0,2.90167885]
[1747064004991,0.25716271,102900.0,102890.0,0.35943794]
[1747064005351,0.21388059,102900.0,102890.0,0.55382048]
[1747064005562,0.24068059,102900.0,102890.0,0.34]
[1747064006200,0.24044049,102900.0,102890.0,0.34]
[1747064006417,0.26634049,102900.0,102890.0,0.34]
[1747064006627,0.00972119,102860.0,102850.0,0.31841026]
[1747064006877,0.22360346,102860.0,102850.0,0.7284321]
[1747064007082,0.23332541,102860.0,102850.0,0.8655091]
[1747064007303,0.23332541,102860.0,102850.0,0.97616126]
[1747064007484,0.22360422,102860.0,102850.0,0.98588368]
[1747064007689,0.22360422,102860.0,102850.0,0.69826475]
[1747064007952,0.21488275,102860.0,102850.0,1.04457126]
[1747064008157,0.02044371,102860.0,102850.0,1.05429349]
[1747064008369,0.21488275,102860.0,102850.0,1.04457126]
[1747064008585,0.21488275,102860.0,102850.0,0.96682595]
[1747064008794,0.21388275,102860.0,102850.0,0.70326475]
[1747064009015,0.21388275,102860.0,102850.0,0.71498736]
[1747064009285,0.20416099,102860.0,102850.0,0.06522971]
[1747064009509,0.25666099,102860.0,102850.0,0.06522971]
[1747064009719,0.25666099,102860.0,102850.0,0.25468765]
[1747064009946,0.20416099,102860.0,102850.0,0.71725752]
[1747064010142,0.20416099,102860.0,102850.0,0.52818627]
[1747064010358,0.20416099,102860.0,102850.0,0.52079958]
[1747064010565,0.20416099,102860.0,102850.0,0.05822971]
[1747064010785,0.20416099,102860.0,102850.0,0.05922971]
[1747064010998,0.20416099,102860.0,102850.0,0.06022971]
[1747064011629,0.20416099,102860.0,102850.0,0.25468765]
[1747064011878,0.21388265,102860.0,102850.0,0.72398022]
[1747064012082,0.21388265,102860.0,102850.0,0.73370283]
[1747064012230,0.21388265,102860.0,102850.0,0.71425752]
[1747064012436,0.21388265,102860.0,102850.0,0.25468765]
[1747064012437,0.20416099,102860.0,102850.0,0.25468765]
[1747064012631,0.20416099,102860.0,102850.0,0.06022971]
[1747064013226,0.23036099,102860.0,102850.0,0.06022971]
[1747064013639,0.25556099,102860.0,102850.0,0.06022971]
[1747064014326,0.25556099,102860.0,102850.0,0.03017935]
[1747064014753,0.25556099,102860.0,102850.0,0.02917935]
[1747064015083,0.20418074,102850.0,102840.0,1.15883903]
[1747064016173,0.24683904,102860.0,102850.0,0.22362538]
[1747064016174,0.001,102860.0,102850.0,0.22362538]
[1747064016422,0.02044257,102860.0,102850.0,1.01299255]
[1747064016632,0.22360393,102860.0,102850.0,0.64413494]
[1747064016841,0.22360393,102860.0,102850.0,0.66366988]
[1747064017051,0.23332588,102860.0,102850.0,0.66366988]
[1747064017432,0.02916489,102860.0,102850.0,0.66366988]
[1747064017642,0.03016489,102860.0,102850.0,0.66366988]
[1747064017851,0.23432588,102860.0,102850.0,0.65394755]
[1747064018056,0.23432588,102860.0,102850.0,0.30975755]
[1747064018326,0.19543904,102860.0,102840.0,0.36811304]
[1747064018540,0.19543904,102860.0,102840.0,0.02811304]
[1747064018541,0.24050344,102850.0,102840.0,0.02811304]
[1747064018748,0.2584005,102840.0,102820.0,0.21414268]
[1747064018963,0.20422035,102830.0,102820.0,0.55414268]
[1747064019184,0.20422035,102830.0,102820.0,0.21414268]
[1747064019407,0.20422035,102830.0,102820.0,0.55414268]
[1747064019617,0.22366954,102830.0,102820.0,0.42810854]
[1747064019842,0.21394504,102830.0,102820.0,0.55414268]
[1747064020052,0.21394504,102830.0,102820.0,0.75838309]
[1747064020266,0.20422045,102830.0,102820.0,0.75838309]
[1747064020476,0.019449,102830.0,102820.0,0.81955501]
[1747064020713,0.00972412,102830.0,102820.0,2.36396937]
[1747064020920,0.02917302,102830.0,102820.0,2.36396937]
[1747064021065,0.02917302,102830.0,102820.0,2.39301973]
[1747064021272,0.00972355,102840.0,102830.0,0.55394466]
[1747064021485,0.22223904,102860.0,102850.0,0.19445794]
[1747064021701,0.0278,102860.0,102850.0,0.57334837]
[1747064021933,0.21963703,102870.0,102860.0,0.34]
[1747064021934,0.24743703,102870.0,102860.0,0.34]
[1747064022153,0.24743703,102870.0,102860.0,0.53443904]
[1747064022386,0.20414114,102870.0,102860.0,0.34]
[1747064022608,0.25714114,102870.0,102860.0,0.34]
[1747064023566,0.26114114,102870.0,102860.0,0.34]
[1747064023770,0.26514114,102870.0,102860.0,0.341]
[1747064024188,0.2218613,102870.0,102860.0,1.04350269]
[1747064024411,0.23158221,102870.0,102860.0,0.57421125]
[1747064024634,0.22186177,102870.0,102860.0,0.57421125]
[1747064024871,0.26624105,102870.0,102860.0,0.03005036]
[1747064025331,0.21214105,102870.0,102860.0,0.23421125]
[1747064025552,0.21214105,102870.0,102860.0,0.03005036]
[1747064025765,0.21214105,102870.0,102860.0,0.23421125]
[1747064026000,0.23158267,102870.0,102860.0,0.24393301]
[1747064026219,0.23158267,102870.0,102860.0,0.33006555]
[1747064026426,0.23158267,102870.0,102860.0,0.35923016]
[1747064026638,0.01772025,102870.0,102860.0,0.81879994]
[1747064026865,0.04688231,102870.0,102860.0,0.87139994]
[1747064027091,0.01772025,102870.0,102860.0,0.81879994]
[1747064027320,0.01772025,102870.0,102860.0,1.61139994]
[1747064027545,0.04688202,102870.0,102860.0,1.61139994]
[1747064027758,0.03716121,102870.0,102860.0,1.58409994]
[1747064027976,0.008,102870.0,102860.0,4.61139994]
[1747064028187,0.01772025,102870.0,102860.0,4.61139994]
[1747064028405,0.01772025,102870.0,102860.0,4.37419894]
[1747064028646,0.01772025,102870.0,102860.0,4.25268794]
[1747064028871,0.008,102870.0,102860.0,4.25268794]
[1747064029083,0.01372034,102870.0,102860.0,3.97393094]
[1747064029295,0.004,102870.0,102860.0,3.95002594]
[1747064029507,0.006,102870.0,102860.0,3.95002594]
[1747064031934,0.22358191,102870.0,102860.0,1.03778112]
[1747064032135,0.01944096,102870.0,102860.0,0.70323007]
[1747064032349,0.01944096,102870.0,102860.0,1.10323007]
[1747064032554,0.01944096,102870.0,102860.0,1.10023007]
[1747064032764,0.02916177,102870.0,102860.0,1.10023007]
[1747064032962,0.22358191,102870.0,102860.0,1.08850878]
[1747064033180,0.23330291,102870.0,102860.0,0.97321116]
[1747064033411,0.23330291,102870.0,102860.0,0.97321135]
[1747064033412,0.21386195,102870.0,102860.0,0.97321135]
[1747064033643,0.21386195,102870.0,102860.0,0.9859332]
[1747064033832,0.21386195,102870.0,102860.0,0.99865486]
[1747064034045,0.21386195,102870.0,102860.0,1.00837653]
[1747064034260,0.21386195,102870.0,102860.0,0.60537653]
[1747064034469,0.21386195,102870.0,102860.0,0.59665496]
[1747064034667,0.21386195,102870.0,102860.0,0.59365496]
[1747064034962,0.21386195,102870.0,102860.0,0.9849332]
[1747064035194,0.21386195,102870.0,102860.0,1.00437643]
[1747064036484,0.01944181,102870.0,102860.0,1.44450307]
[1747064036686,0.22358239,102870.0,102860.0,1.46394593]
[1747064037134,0.22358239,102870.0,102860.0,1.44450307]
[1747064037341,0.21386186,102870.0,102860.0,0.97521135]
[1747064037587,0.21386186,102870.0,102860.0,0.37105036]
[1747064037806,0.26696186,102870.0,102860.0,0.03105036]
[1747064038876,0.26696186,102870.0,102860.0,0.002]
[1747064039306,0.26696186,102870.0,102860.0,0.001]
[1747064039531,0.26796186,102870.0,102860.0,0.001]
[1747064039786,0.2041608,102860.0,102850.0,0.55390221]
[1747064039998,0.2041608,102860.0,102850.0,0.54417951]
[1747064040204,0.2041608,102860.0,102850.0,0.55390231]
[1747064040420,0.2041608,102860.0,102850.0,0.56362501]
[1747064041141,0.2041608,102860.0,102850.0,0.56562501]
[1747064041393,0.2317608,102860.0,102850.0,0.342]
[1747064041600,0.2595608,102860.0,102850.0,0.342]
[1747064041819,0.2595608,102860.0,102850.0,0.002]
[1747064042255,0.3554151,102860.0,102850.0,0.002]
[1747064042904,0.2595608,102860.0,102850.0,0.34]
[1747064043120,0.2615608,102860.0,102850.0,0.34]
[1747064043330,0.2645608,102860.0,102850.0,0.34]
[1747064044216,0.21393868,102840.0,102830.0,0.53449576]
[1747064044428,0.02917076,102840.0,102830.0,0.65952318]
[1747064044644,0.02917076,102840.0,102830.0,0.6692473]
[1747064045472,0.22364761,102840.0,102830.0,0.64007465]
[1747064045672,0.21392424,102840.0,102830.0,0.65952356]
[1747064045886,0.21392424,102840.0,102830.0,0.66052356]
[1747064046219,0.24983904,102860.0,102850.0,0.53445794]
[1747064046387,0.24983904,102860.0,102850.0,0.34]
[1747064046827,0.19443904,102860.0,102850.0,0.54418083]
[1747064047040,0.22202014,102870.0,102860.0,0.55388284]
[1747064047254,0.01944115,102870.0,102860.0,1.07163004]
[1747064047479,0.22358248,102870.0,102860.0,1.06190875]
[1747064047629,0.01944153,102870.0,102860.0,1.07163004]
[1747064047791,0.01944153,102870.0,102860.0,1.07163013]
[1747064047994,0.02916244,102870.0,102860.0,1.08135142]
[1747064048223,0.19440124,102880.0,102860.0,1.15776154]
[1747064048431,0.03888165,102870.0,102860.0,1.18556154]
[1747064048628,0.0097193,102880.0,102870.0,0.22358201]
[1747064048834,0.0097193,102880.0,102870.0,0.78868352]
[1747064049058,0.02915875,102880.0,102870.0,0.78868352]
[1747064049419,0.01943888,102880.0,102870.0,0.78868352]
[1747064049628,0.02915875,102880.0,102870.0,1.30198652]
[1747064049842,0.0097193,102880.0,102870.0,1.30198652]
[1747064050060,0.01943879,102880.0,102870.0,1.32718652]
[1747064050265,0.02243879,102880.0,102870.0,1.32718652]
[1747064050492,0.03515838,102880.0,102870.0,1.32718652]
[1747064050702,0.0157193,102880.0,102870.0,1.35468652]
[1747064050917,0.02543888,102880.0,102870.0,1.35468652]
[1747064051121,0.0254387,102880.0,102870.0,1.75468652]
[1747064051364,0.006,102880.0,102870.0,2.09468652]
[1747064052006,0.003,102880.0,102870.0,2.32302737]
[1747064052218,0.0291528,102900.0,102890.0,0.22353855]
[1747064052434,0.0291528,102900.0,102890.0,2.07999253]
[1747064052435,0.03887097,102900.0,102890.0,2.07999253]
[1747064052673,0.0291528,102900.0,102890.0,1.73868553]
[1747064053035,0.21377817,102910.0,102900.0,0.21379931]
[1747064053312,0.23321252,102910.0,102900.0,0.77894118]
[1747064053538,0.23321252,102910.0,102900.0,0.76922348]
[1747064053761,0.22349577,102910.0,102900.0,0.76922348]
[1747064053984,0.21377892,102910.0,102900.0,0.29021775]
[1747064054462,0.21377892,102910.0,102900.0,0.4]
[1747064054687,0.25606179,102910.0,102900.0,0.4]
[1747064054916,0.20408143,102900.0,102890.0,0.04841181]
[1747064055168,0.25608143,102900.0,102890.0,0.04841181]
[1747064055402,0.25608143,102900.0,102890.0,0.44841181]
[1747064055524,0.20408143,102900.0,102890.0,0.04841181]
[1747064056229,0.20408143,102900.0,102890.0,0.04941181]
[1747064057116,0.23048143,102900.0,102890.0,0.04941181]
[1747064057339,0.25668143,102900.0,102890.0,0.04941181]
[1747064057572,0.25668143,102900.0,102890.0,0.01067734]
[1747064057817,1.0257456,102900.0,102890.0,0.001]
[1747064058325,1.04028645,102900.0,102890.0,0.001]
[1747064058573,1.25424645,102900.0,102890.0,0.001]
[1747064058870,0.26784069,102880.0,102870.0,0.00967734]
[1747064059059,0.16384069,102880.0,102870.0,0.00967734]
[1747064059586,0.21384069,102880.0,102870.0,0.30971597]
[1747064059815,0.21384069,102880.0,102870.0,0.29027444]
[1747064060035,0.21384069,102880.0,102870.0,0.29999535]
[1747064060264,0.21484069,102880.0,102870.0,0.3341294]
[1747064060502,0.21484069,102880.0,102870.0,0.32440868]
[1747064060964,0.21484069,102880.0,102870.0,0.33412949]
[1747064061492,0.01071921,102880.0,102870.0,1.40583479]
[1747064061758,0.001,102880.0,102870.0,3.69971313]
[1747064062008,0.001,102880.0,102870.0,3.62000913]
[1747064062247,0.01071921,102880.0,102870.0,3.62000913]
[1747064062490,0.02043861,102880.0,102870.0,3.62000913]
[1747064062759,0.001,102880.0,102870.0,3.62000913]
[1747064062998,0.001,102880.0,102870.0,3.63454998]
[1747064063213,0.001,102880.0,102870.0,3.84806998]
[1747064064644,0.01943492,102900.0,102890.0,0.56353846]
[1747064064851,0.23323442,102900.0,102890.0,0.69808621]
[1747064065285,0.24915322,102920.0,102910.0,0.34]
[1747064065286,0.00971619,102920.0,102910.0,0.34]
[1747064065515,0.22347405,102920.0,102910.0,1.15761462]
[1747064065735,0.01943209,102920.0,102910.0,1.14789768]
[1747064065966,0.22347329,102920.0,102910.0,1.16733109]
[1747064066221,0.01943152,102920.0,102910.0,1.16733109]
[1747064066458,0.02914752,102920.0,102910.0,3.45529609]
[1747064066670,0.02914752,102920.0,102910.0,3.33513309]
[1747064066895,0.004,102920.0,102910.0,3.33513309]
[1747064067141,0.00971552,102920.0,102910.0,3.33513309]
[1747064067385,0.01943133,102920.0,102910.0,3.33513309]
[1747064067614,0.02914742,102920.0,102910.0,2.42518509]
[1747064067888,0.01271552,102920.0,102910.0,2.37645409]
[1747064068117,0.01271552,102920.0,102910.0,2.40355409]
[1747064068503,0.40783027,102950.0,102920.0,0.53430717]
[1747064068504,0.19435027,102950.0,102920.0,0.53430717]
[1747064068760,0.04856979,102940.0,102930.0,1.34449337]
[1747064068993,0.04856979,102940.0,102930.0,1.39096243]
[1747064069235,0.19435027,102950.0,102940.0,0.22342997]
[1747064069236,0.00971279,102950.0,102940.0,0.22342997]
[1747064069565,0.02913903,102950.0,102940.0,0.77885414]
[1747064070035,0.02913903,102950.0,102940.0,2.59590614]
[1747064070299,0.02913903,102950.0,102940.0,1.41409814]
[1747064070545,0.03885238,102950.0,102940.0,0.92988414]
[1747064070797,0.23312144,102950.0,102940.0,0.4958543]
[1747064071041,0.21369567,102950.0,102940.0,0.69014223]
[1747064071298,0.21369567,102950.0,102940.0,0.42474301]
[1747064071540,0.26569567,102950.0,102940.0,0.36474301]
[1747064072025,0.26769567,102950.0,102940.0,0.36474301]
[1747064072518,0.26969567,102950.0,102940.0,0.36474301]
[1747064073158,0.21769567,102950.0,102940.0,0.36474301]
[1747064073919,0.02342624,102950.0,102940.0,1.15331135]
[1747064074168,0.22740865,102950.0,102940.0,1.14359762]
[1747064074615,0.22740865,102950.0,102940.0,1.55331135]
[1747064074821,0.23712135,102950.0,102940.0,2.66262654]
[1747064075065,0.04285229,102950.0,102940.0,2.63880827]
[1747064075356,0.03313884,102950.0,102940.0,2.52983827]
[1747064075617,0.04285219,102950.0,102940.0,2.52983827]
[1747064075865,0.05256564,102950.0,102940.0,2.52983827]
[1747064076076,0.2468347,102950.0,102940.0,2.52983827]
[1747064076303,0.2468347,102950.0,102940.0,2.52012454]
[1747064076531,0.23712201,102950.0,102940.0,2.52012454]
[1747064076994,0.23712201,102950.0,102940.0,1.89435554]
[1747064077228,0.23712201,102950.0,102940.0,1.90406937]